fUSD/lending_fUSD_20260116
["ID","MTS","AMOUNT","RATE_DAILY","PERIOD"]
[402135482,1768540260521,-501.63976127,0.0003589,10]
[402135483,1768540260532,-500.0,0.0003589,10]
[402135484,1768540260542,-952.53,0.0003589,10]
[402135485,1768540260551,-500.0,0.0003589,10]
[402135486,1768540260561,-504.82038066,0.0003589,10]
[402135487,1768540260570,-552.45,0.0003589,10]
[402135488,1768540260580,-500.0,0.0003589,10]
[402135489,1768540260589,-504.5695906,0.0003589,10]
[402135490,1768540260599,-411.23478681,0.0003589,10]
[402135491,1768540260608,-581.75511371,0.0003589,10]
[402135492,1768540260617,-534.66811304,0.0003589,10]
[402135493,1768540260626,-660.77,0.0003589,10]
[402135494,1768540260635,-900.8,0.0003589,10]
[402135495,1768540260644,-500.0,0.0003589,10]
[402135496,1768540260653,-500.0,0.0003589,10]
[402135497,1768540260663,-500.0,0.0003589,10]
[402135498,1768540260672,-500.0,0.0003589,10]
[402135499,1768540260681,-500.0,0.0003589,10]
[402135500,1768540260691,-505.28128391,0.0003589,10]
[402135501,1768540260700,-818.78,0.0003589,10]
[402135502,1768540260709,-645.76,0.0003589,10]
[402135503,1768540260718,-205.95415029,0.0003589,10]
[402135504,1768540260727,-500.0,0.0003589,10]
[402135505,1768540260737,-500.0,0.0003589,120]
[402135506,1768540260746,-865.78,0.0003589,10]
[402135507,1768540260756,-504.48854073,0.0003589,10]
[402135508,1768540260765,-507.1309657,0.0003589,10]
[402135509,1768540260774,-894.39,0.0003589,10]
[402135510,1768540260783,-508.10391466,0.0003589,10]
[402135511,1768540260793,-506.39921459,0.0003589,10]
[402135512,1768540260802,-500.0,0.0003589,10]
[402135513,1768540260811,-154.006185,0.0003589,31]
[402135514,1768540260820,-592.89,0.0003589,10]
[402135515,1768540260830,-500.0,0.0003589,10]
[402135516,1768540260839,-500.0,0.0003589,10]
[402135517,1768540260849,-509.05169724,0.0003589,10]
[402135518,1768540260858,-525.53,0.0003589,10]
[402135519,1768540260867,-500.0,0.0003589,10]
[402135520,1768540260876,-500.0,0.0003589,10]
[402135521,1768540260885,-500.0,0.0003589,10]
[402135522,1768540260894,-500.0,0.0003589,10]
[402135523,1768540260903,-1051.74,0.0003589,2]
[402135524,1768540260912,-500.0,0.0003589,10]
[402135525,1768540260922,-574.42,0.0003589,10]
[402135526,1768540260931,-500.0,0.0003589,10]
[402135527,1768540260940,-500.0,0.0003589,10]
[402135528,1768540260949,-500.0,0.0003589,10]
[402135529,1768540260959,-503.55597297,0.0003589,10]
[402135530,1768540260968,-1111.0,0.0003589,10]
[402135531,1768540260978,-504.41278304,0.0003589,10]
[402135532,1768540260987,-890.2,0.0003589,10]
[402135533,1768540260996,-929.22,0.0003589,10]
[402135534,1768540261006,-851.72,0.0003589,10]
[402135535,1768540261015,-501.40725919,0.0003589,10]
[402135536,1768540261024,-500.0,0.0003589,10]
[402135537,1768540261034,-563.54,0.0003589,10]
[402135538,1768540261043,-572.44153588,0.0003589,10]
[402135539,1768540261052,-500.0,0.0003589,10]
[402135540,1768540261063,-500.0,0.0003589,10]
[402135541,1768540261072,-645.95,0.0003589,10]
[402135542,1768540261082,-500.0,0.0003589,10]
[402135543,1768540261092,-500.0,0.0003589,10]
[402135544,1768540261101,-851.11,0.0003589,10]
[402135545,1768540261110,-555.87,0.0003589,10]
[402135546,1768540261120,-1200.44,0.0003589,10]
[402135547,1768540261130,-560.01,0.0003589,10]
[402135548,1768540261141,-500.0,0.0003589,10]
[402135549,1768540261152,-500.0,0.0003589,10]
[402135550,1768540261161,-905.17,0.0003589,10]
[402135551,1768540261171,-955.0,0.0003589,10]
[402135552,1768540261180,-500.0,0.0003589,10]
[402135553,1768540261189,-504.77141007,0.0003589,10]
[402135554,1768540261199,-2177.2,0.0003589,10]
[402135555,1768540261208,-500.0,0.0003589,10]
[402135556,1768540261219,-500.0,0.0003589,10]
[402135557,1768540261228,-500.0,0.0003589,10]
[402135558,1768540261239,-500.0,0.0003589,10]
[402135559,1768540261248,-500.0,0.0003589,10]
[402135560,1768540261257,-741.53,0.0003589,10]
[402135561,1768540261266,-501.79441245,0.0003589,10]
[402135562,1768540261275,-500.0,0.0003589,10]
[402135563,1768540261284,-581.02,0.0003589,10]
[402135564,1768540261293,-322.33559329,0.0003589,10]
[402135565,1768540261302,-699.86,0.0003589,10]
[402135566,1768540261311,-500.0,0.0003589,10]
[402135567,1768540261321,-501.50208554,0.0003589,10]
[402135568,1768540261331,-500.0,0.0003589,10]
[402135569,1768540261340,-214.10769185,0.0003589,120]
[402135570,1768540261349,-500.0,0.0003589,10]
[402135571,1768540261359,-500.0,0.0003589,10]
[402135572,1768540261370,-1000.74,0.0003589,10]
[402135573,1768540261379,-554.03648991,0.0003589,10]
[402135574,1768540261389,-502.12185486,0.0003589,10]
[402135575,1768540261398,-502.37959022,0.0003589,10]
[402135576,1768540261408,-626.27,0.0003589,10]
[402135577,1768540261420,-500.0,0.0003589,10]
[402135578,1768540261432,-500.0,0.0003589,10]
[402135579,1768540261442,-812.71,0.0003589,10]
[402135580,1768540261451,-500.0,0.0003589,10]
[402135581,1768540261462,-500.0,0.0003589,10]
[402135582,1768540261471,-500.0,0.0003589,10]
[402135583,1768540261480,-1013.74340533,0.0003589,10]
[402135584,1768540261490,-500.0,0.0003589,10]
[402135585,1768540261500,-500.86410254,0.0003589,10]
[402135586,1768540261509,-867.84,0.0003589,10]
[402135587,1768540261518,-511.04487956,0.0003589,10]
[402135588,1768540261527,-506.08316398,0.0003589,10]
[402135589,1768540261537,-819.72,0.0003589,10]
[402135590,1768540261546,-585.22707887,0.0003589,10]
[402135591,1768540261555,-500.0,0.0003589,10]
[402135592,1768540261564,-500.0,0.0003589,10]
[402135593,1768540261573,-507.07589851,0.0003589,10]
[402135594,1768540261582,-589.03,0.0003589,10]
[402135595,1768540261592,-535.25426924,0.0003589,10]
[402135596,1768540261601,-506.63912405,0.0003589,10]
[402135597,1768540261610,-536.47050122,0.0003589,10]
[402135598,1768540261619,-543.24,0.0003589,10]
[402135599,1768540261629,-503.23896665,0.0003589,10]
[402135600,1768540261638,-500.0,0.0003589,10]
[402135601,1768540261647,-500.0,0.0003589,10]
[402135602,1768540261656,-637.36,0.0003589,10]
[402135603,1768540261665,-500.0,0.0003589,10]
[402135604,1768540261674,-167.31286308,0.0003589,10]
[402135605,1768540261683,-665.6,0.0003589,10]
[402135606,1768540261692,-500.0,0.0003589,10]
[402135607,1768540261701,-524.79,0.0003589,10]
[402135608,1768540261711,-503.63310154,0.0003589,10]
[402135609,1768540261720,-538.17,0.0003589,10]
[402135610,1768540261729,-500.0,0.0003589,10]
[402135611,1768540261739,-500.0,0.0003589,10]
[402135612,1768540261749,-500.0,0.0003589,10]
[402135613,1768540261758,-500.0,0.0003589,10]
[402135614,1768540261768,-500.0,0.0003589,10]
[402135615,1768540261777,-500.0,0.0003589,10]
[402135616,1768540261786,-1663.38,0.0003589,10]
[402135617,1768540261795,-500.0,0.0003589,10]
[402135618,1768540261804,-500.0,0.0003589,10]
[402135619,1768540261813,-500.0,0.0003589,10]
[402135620,1768540261822,-506.70196226,0.0003589,10]
[402135621,1768540261831,-555.9646764,0.0003589,10]
[402135622,1768540261840,-500.0,0.0003589,10]
[402135623,1768540261849,-500.0,0.0003589,10]
[402135624,1768540261858,-688.0,0.0003589,10]
[402135625,1768540261867,-576.4,0.0003589,10]
[402135626,1768540261876,-500.0,0.0003589,10]
[402135627,1768540261885,-500.0,0.0003589,10]
[402135628,1768540261894,-500.0,0.0003589,10]
[402135629,1768540261903,-500.0,0.0003589,10]
[402135630,1768540261912,-500.0,0.0003589,10]
[402135631,1768540261922,-500.0,0.0003589,10]
[402135632,1768540261931,-506.1072834,0.0003589,10]
[402135633,1768540261940,-1069.38,0.0003589,10]
[402135634,1768540261949,-569.91,0.0003589,10]
[402135635,1768540261958,-500.0,0.0003589,10]
[402135636,1768540261967,-500.0,0.0003589,10]
[402135637,1768540261976,-500.0,0.0003589,10]
[402135638,1768540261985,-500.0,0.0003589,10]
[402135639,1768540261994,-500.0,0.0003589,10]
[402135640,1768540262004,-581.27,0.0003589,10]
[402135641,1768540262013,-1195.89,0.0003589,10]
[402135642,1768540262021,-500.0,0.0003589,10]
[402135643,1768540262030,-500.0,0.0003589,10]
[402135644,1768540262039,-500.0,0.0003589,10]
[402135645,1768540262048,-500.0,0.0003589,10]
[402135646,1768540262057,-440.34429758,0.0003589,10]
[402135647,1768540262066,-500.0,0.0003589,10]
[402135648,1768540262075,-1176.2,0.0003589,10]
[402135649,1768540262084,-1988.07,0.0003589,10]
[402135650,1768540262093,-500.0,0.0003589,10]
[402135651,1768540262102,-532.14,0.0003589,10]
[402135652,1768540262111,-151.0,0.0003589,31]
[402135653,1768540262122,-500.0,0.0003589,10]
[402135654,1768540262131,-151.0,0.0003589,31]
[402135655,1768540262142,-500.0,0.0003589,10]
[402135656,1768540262152,-645.22,0.0003589,10]
[402135657,1768540262161,-500.0,0.0003589,10]
[402135658,1768540262172,-870.89,0.0003589,10]
[402135659,1768540262182,-500.0,0.0003589,10]
[402135660,1768540262191,-660.41,0.0003589,10]
[402135661,1768540262199,-500.0,0.0003589,10]
[402135662,1768540262209,-500.0,0.0003589,10]
[402135663,1768540262220,-659.53,0.0003589,10]
[402135664,1768540262229,-914.89,0.0003589,10]
[402135665,1768540262238,-501.73097616,0.0003589,10]
[402135666,1768540262247,-906.68,0.0003589,10]
[402135667,1768540262257,-504.74330346,0.0003589,10]
[402135668,1768540262267,-1720.57,0.0003589,10]
[402135669,1768540262277,-505.05038261,0.0003589,10]
[402135670,1768540262287,-505.37667428,0.0003589,10]
[402135671,1768540262297,-500.0,0.0003589,10]
[402135672,1768540262306,-501.0284698,0.0003589,10]
[402135673,1768540262315,-506.77937267,0.0003589,10]
[402135674,1768540262324,-500.0,0.0003589,10]
[402135675,1768540262334,-500.0,0.0003589,10]
[402135676,1768540262346,-500.0,0.0003589,10]
[402135677,1768540262356,-500.0,0.0003589,10]
[402135678,1768540262366,-504.9681327,0.0003589,10]
[402135679,1768540262376,-1200.97,0.0003589,10]
[402135680,1768540262385,-502.2039238,0.0003589,10]
[402135681,1768540262394,-500.0,0.0003589,10]
[402135682,1768540262403,-787.2,0.0003589,10]
[402135683,1768540262412,-692.64,0.0003589,10]
[402135684,1768540262422,-500.0,0.0003589,10]
[402135685,1768540262433,-664.1,0.0003589,10]
[402135686,1768540262441,-500.0,0.0003589,10]
[402135687,1768540262450,-500.0,0.0003589,10]
[402135688,1768540262460,-927.7,0.0003589,10]
[402135689,1768540262469,-500.0,0.0003589,10]
[402135690,1768540262478,-578.34,0.0003589,10]
[402135691,1768540262487,-500.0,0.0003589,10]
[402135692,1768540262496,-500.0,0.0003589,10]
[402135693,1768540262505,-500.0,0.0003589,10]
[402135694,1768540262514,-500.0,0.0003589,10]
[402135695,1768540262524,-665.92,0.0003589,10]
[402135696,1768540262534,-500.0,0.0003589,10]
[402135697,1768540262543,-697.92,0.0003589,10]
[402135698,1768540262553,-500.0,0.0003589,10]
[402135699,1768540262563,-500.0,0.0003589,10]
[402135700,1768540262573,-500.0,0.0003589,10]
[402135701,1768540262582,-541.15,0.0003589,10]
[402135702,1768540262591,-505.48334419,0.0003589,10]
[402135703,1768540262601,-300.0,0.0003589,2]
[402135704,1768540262610,-500.0,0.0003589,10]
[402135705,1768540262619,-1000.0,0.0003589,10]
[402135706,1768540262628,-500.0,0.0003589,10]
[402135707,1768540262637,-200.0,0.0003589,120]
[402135708,1768540262646,-500.0,0.0003589,10]
[402135709,1768540262655,-667.58,0.0003589,10]
[402135710,1768540262664,-509.30510673,0.0003589,10]
[402135711,1768540262673,-500.0,0.0003589,10]
[402135712,1768540262684,-500.0,0.0003589,10]
[402135713,1768540262693,-507.96,0.0003589,10]
[402135714,1768540262703,-1331.43,0.0003589,10]
[402135715,1768540262712,-254.47690022,0.0003589,10]
[402135716,1768540262722,-500.0,0.0003589,10]
[402135717,1768540262731,-702.48,0.0003589,10]
[402135718,1768540262741,-500.0,0.0003589,10]
[402135719,1768540262750,-906.92,0.0003589,10]
[402135720,1768540262759,-796.44,0.0003589,10]
[402135721,1768540262769,-500.0,0.0003589,10]
[402135722,1768540262779,-500.0,0.0003589,10]
[402135723,1768540262788,-580.85,0.0003589,10]
[402135724,1768540262798,-500.0,0.0003589,10]
[402135725,1768540262808,-500.0,0.0003589,10]
[402135726,1768540262817,-602.35,0.0003589,10]
[402135727,1768540262827,-505.64521364,0.0003589,10]
[402135728,1768540262836,-500.0,0.0003589,10]
[402135729,1768540262845,-500.0,0.0003589,10]
[402135730,1768540262854,-500.0,0.0003589,10]
[402135731,1768540262863,-500.0,0.0003589,10]
[402135732,1768540262872,-515.09,0.0003589,10]
[402135733,1768540262882,-500.0,0.0003589,10]
[402135734,1768540262891,-500.0,0.0003589,10]
[402135735,1768540262900,-500.0,0.0003589,10]
[402135736,1768540262909,-510.14457932,0.0003589,10]
[402135737,1768540262918,-178.945303,0.0003589,10]
[402135738,1768540262928,-500.0,0.0003589,10]
[402135739,1768540262937,-529.74657878,0.0003589,10]
[402135740,1768540262946,-500.0,0.0003589,10]
[402135741,1768540262955,-1106.91,0.0003589,10]
[402135742,1768540262964,-622.88,0.0003589,10]
[402135743,1768540262974,-537.99866634,0.0003589,10]
[402135744,1768540262984,-732.95,0.0003589,10]
[402135745,1768540262994,-764.71,0.0003589,10]
[402135746,1768540263003,-500.0,0.0003589,10]
[402135747,1768540263013,-500.0,0.0003589,10]
[402135748,1768540263022,-510.18873639,0.0003589,10]
[402135749,1768540263032,-724.0,0.0003589,10]
[402135750,1768540263042,-500.0,0.0003589,10]
[402135751,1768540263052,-573.79361299,0.0003589,10]
[402135752,1768540263061,-500.0,0.0003589,10]
[402135753,1768540263071,-504.09591111,0.0003589,10]
[402135754,1768540263081,-979.74,0.0003589,10]
[402135755,1768540263090,-500.0,0.0003589,10]
[402135756,1768540263100,-500.0,0.0003589,10]
[402135757,1768540263109,-1256.25,0.0003589,10]
[402135758,1768540263118,-500.0,0.0003589,10]
[402135759,1768540263129,-512.72,0.0003589,10]
[402135760,1768540263143,-505.51152399,0.0003589,10]
[402135761,1768540263152,-1015.29,0.0003589,10]
[402135762,1768540263162,-500.0,0.0003589,10]
[402135763,1768540263172,-226.984002,0.0003589,3]
[402135764,1768540263182,-500.0,0.0003589,10]
[402135765,1768540263192,-500.0,0.0003589,10]
[402135766,1768540263202,-226.984002,0.0003589,3]
[402135767,1768540263211,-226.984002,0.0003589,3]
[402135768,1768540263222,-500.0,0.0003589,10]
[402135769,1768540263231,-226.984002,0.0003589,3]
[402135770,1768540263241,-990.78,0.0003589,10]
[402135771,1768540263250,-500.0,0.0003589,10]
[402135772,1768540263260,-808.21,0.0003589,10]
[402135773,1768540263270,-665.01,0.0003589,10]
[402135774,1768540263280,-500.0,0.0003589,10]
[402135775,1768540263290,-500.0,0.0003589,10]
[402135776,1768540263299,-500.0,0.0003589,10]
[402135777,1768540263309,-535.54,0.0003589,10]
[402135778,1768540263319,-500.0,0.0003589,10]
[402135779,1768540263329,-500.0,0.0003589,10]
[402135780,1768540263338,-500.0,0.0003589,10]
[402135781,1768540263348,-500.0,0.0003589,10]
[402135782,1768540263358,-527.48,0.0003589,10]
[402135783,1768540263368,-705.86,0.0003589,10]
[402135784,1768540263378,-500.0,0.0003589,10]
[402135785,1768540263388,-500.0,0.0003589,10]
[402135786,1768540263398,-569.71,0.0003589,10]
[402135787,1768540263408,-370.94991224,0.0003589,10]
[402135788,1768540263418,-689.45,0.0003589,10]
[402135789,1768540263427,-930.39,0.0003589,10]
[402135790,1768540263437,-596.31,0.0003589,10]
[402135791,1768540263447,-157.90922575,0.0003589,10]
[402135792,1768540263456,-500.0,0.0003589,10]
[402135793,1768540263465,-500.0,0.0003589,10]
[402135794,1768540263474,-500.0,0.0003589,10]
[402135795,1768540263484,-736.2,0.0003589,10]
[402135796,1768540263494,-500.0,0.0003589,10]
[402135797,1768540263516,-914.98,0.0003589,10]
[402135798,1768540263527,-515.05829728,0.0003589,10]
[402135799,1768540263537,-783.63,0.0003589,10]
[402135800,1768540263548,-500.0,0.0003589,10]
[402135801,1768540263558,-925.25,0.0003589,10]
[402135802,1768540263568,-502.99400441,0.0003589,10]
[402135803,1768540263578,-504.07503793,0.0003589,10]
[402135804,1768540263589,-500.0,0.0003589,10]
[402135805,1768540263600,-821.88,0.0003589,10]
[402135806,1768540263610,-500.0,0.0003589,10]
[402135807,1768540263620,-500.0,0.0003589,10]
[402135808,1768540263631,-500.0,0.0003589,10]
[402135809,1768540263642,-500.0,0.0003589,10]
[402135810,1768540263652,-518.29700047,0.0003589,10]
[402135811,1768540263662,-165.422529,0.0003589,10]
[402135812,1768540263672,-500.0,0.0003589,10]
[402135813,1768540263682,-500.0,0.0003589,10]
[402135814,1768540263697,-504.30881195,0.0003589,10]
[402135815,1768540263708,-500.04472716,0.0003589,10]
[402135816,1768540263718,-1502.91,0.0003589,10]
[402135817,1768540263729,-500.0,0.0003589,10]
[402135818,1768540263740,-500.0,0.0003589,10]
[402135819,1768540263751,-500.0,0.0003589,10]
[402135820,1768540263762,-664.9,0.0003589,10]
[402135821,1768540263772,-857.34,0.0003589,10]
[402135822,1768540263782,-959.11,0.0003589,10]
[402135823,1768540263793,-505.8764591,0.0003589,10]
[402135824,1768540263803,-500.0,0.0003589,10]
[402135825,1768540263814,-500.0,0.0003589,10]
[402135826,1768540263824,-813.51,0.0003589,10]
[402135827,1768540263834,-500.0,0.0003589,10]
[402135828,1768540263844,-500.0,0.0003589,10]
[402135829,1768540263854,-503.12517423,0.0003589,10]
[402135830,1768540263865,-1037.35,0.0003589,10]
[402135831,1768540263875,-1027.78,0.0003589,10]
[402135832,1768540263885,-750.33,0.0003589,10]
[402135833,1768540263896,-380.509999,0.0003589,28]
[402135834,1768540263907,-519.14124608,0.0003589,10]
[402135835,1768540263918,-1456.39,0.0003589,10]
[402135836,1768540263928,-380.509999,0.0003589,28]
[402135837,1768540263938,-500.0,0.0003589,10]
[402135838,1768540263949,-380.509999,0.0003589,28]
[402135839,1768540263959,-607.83,0.0003589,10]
[402135840,1768540263969,-380.509999,0.0003589,28]
[402135841,1768540263980,-667.04,0.0003589,10]
[402135842,1768540263990,-151.0,0.0003589,31]
[402135843,1768540264000,-500.0,0.0003589,10]
[402135844,1768540264010,-151.0,0.0003589,31]
[402135845,1768540264020,-264.938629,0.0003589,31]
[402135846,1768540264030,-500.0,0.0003589,10]
[402135847,1768540264045,-500.69453919,0.0003589,10]
[402135848,1768540264055,-500.0,0.0003589,10]
[402135849,1768540264065,-500.0,0.0003589,10]
[402135850,1768540264076,-500.0,0.0003589,10]
[402135851,1768540264086,-587.43,0.0003589,10]
[402135852,1768540264097,-500.0,0.0003589,10]
[402135853,1768540264108,-500.0,0.0003589,10]
[402135854,1768540264118,-571.27,0.0003589,10]
[402135855,1768540264129,-500.0,0.0003589,10]
[402135856,1768540264141,-349.92775337,0.0003589,10]
[402135857,1768540264153,-500.0,0.0003589,10]
[402135858,1768540264163,-500.0,0.0003589,10]
[402135859,1768540264174,-500.0,0.0003589,10]
[402135860,1768540264187,-507.0506464,0.0003589,10]
[402135861,1768540264197,-540.10542731,0.0003589,10]
[402135862,1768540264209,-706.14,0.0003589,10]
[402135863,1768540264220,-500.0,0.0003589,10]
[402135864,1768540264231,-500.0,0.0003589,10]
[402135865,1768540264241,-503.51736951,0.0003589,10]
[402135866,1768540264252,-1464.01,0.0003589,10]
[402135867,1768540264262,-500.0,0.0003589,10]
[402135868,1768540264272,-500.0,0.0003589,10]
[402135869,1768540264283,-1062.79,0.0003589,10]
[402135870,1768540264293,-500.0,0.0003589,10]
[402135871,1768540264305,-902.4,0.0003589,10]
[402135872,1768540264315,-500.0,0.0003589,10]
[402135873,1768540264325,-500.0,0.0003589,10]
[402135874,1768540264335,-500.0,0.0003589,10]
[402135875,1768540264346,-500.0,0.0003589,10]
[402135876,1768540264356,-1272.85,0.0003589,10]
[402135877,1768540264367,-555.28203727,0.0003589,10]
[402135878,1768540264377,-500.0,0.0003589,10]
[402135879,1768540264387,-657.28,0.0003589,10]
[402135880,1768540264402,-500.0,0.0003589,10]
[402135881,1768540264414,-1225.25,0.0003589,10]
[402135882,1768540264424,-500.0,0.0003589,10]
[402135883,1768540264435,-500.0,0.0003589,10]
[402135884,1768540264447,-831.21,0.0003589,10]
[402135885,1768540264458,-1304.84,0.0003589,10]
[402135886,1768540264468,-505.53893272,0.0003589,10]
[402135887,1768540264478,-506.81,0.0003589,10]
[402135888,1768540264489,-500.0,0.0003589,10]
[402135889,1768540264499,-505.25965085,0.0003589,10]
[402135890,1768540264510,-558.52,0.0003589,10]
[402135891,1768540264520,-500.0,0.0003589,10]
[402135892,1768540264531,-500.0,0.0003589,10]
[402135893,1768540264541,-500.0,0.0003589,10]
[402135894,1768540264551,-1022.61,0.0003589,10]
[402135895,1768540264562,-501.78031641,0.0003589,10]
[402135896,1768540264575,-506.40623358,0.0003589,10]
[402135897,1768540264585,-927.49,0.0003589,10]
[402135898,1768540264595,-551.35,0.0003589,10]
[402135899,1768540264606,-505.72646552,0.0003589,10]
[402135900,1768540264616,-214.402187,0.0003589,31]
[402135901,1768540264627,-226.0568273,0.0003589,10]
[402135902,1768540266615,-500.0,0.00035616,10]
[402135903,1768540266624,-273.9431727,0.0003589,10]
[402135904,1768540266634,-214.402187,0.0003589,31]
[402135905,1768540266644,-214.402187,0.0003589,31]
[402135906,1768540266653,-500.0,0.0003589,10]
[402135907,1768540266663,-500.0,0.0003589,10]
[402135908,1768540266672,-500.0,0.0003589,10]
[402135909,1768540266682,-214.402187,0.0003589,31]
[402135910,1768540266692,-367.8502663,0.0003589,10]
[402135911,1768540267056,-500.0,0.00035616,10]
[402135912,1768540267066,-95.62073914,0.0003589,10]
[402135913,1768540267086,-387.78899456,0.0003589,10]
[402135914,1768540267095,-500.0,0.0003589,10]
[402135915,1768540267105,-822.58,0.0003589,10]
[402135916,1768540267114,-660.93093031,0.0003589,10]
[402135917,1768540267125,-362.84828034,0.0003589,10]
[402135918,1768540267151,-22.40078935,0.0003589,10]
[402135919,1768540267161,-500.0,0.0003589,10]
[402135920,1768540267170,-500.0,0.0003589,10]
[402135921,1768540267179,-561.51335293,0.0003589,10]
[402135922,1768540267188,-459.81855827,0.0003589,10]
[402135923,1768540267284,-40.18144173,0.0003589,10]
[402135924,1768540267293,-536.31,0.0003589,10]
[402135925,1768540267302,-500.0,0.0003589,10]
[402135926,1768540267311,-65.10855827,0.0003589,10]
[402135927,1768540267327,-434.89144173,0.0003589,10]
[402135928,1768540267336,-500.0,0.0003589,10]
[402135929,1768540267345,-500.0,0.0003589,10]
[402135930,1768540267354,-405.76855827,0.0003589,10]
[402135931,1768540267364,-94.23144173,0.0003589,10]
[402135932,1768540267373,-500.0,0.0003589,10]
[402135933,1768540267383,-500.0,0.0003589,10]
[402135934,1768540267391,-480.74194838,0.0003589,10]
[402135935,1768540267402,-19.25805162,0.0003589,10]
[402135936,1768540267411,-500.0,0.0003589,10]
[402135937,1768540267421,-575.33,0.0003589,10]
[402135938,1768540267430,-106.66344996,0.0003589,10]
[402135939,1768540267441,-393.33655004,0.0003589,10]
[402135940,1768540267450,-500.0,0.0003589,10]
[402135941,1768540267459,-506.17707409,0.0003589,10]
[402135942,1768540267467,-500.0,0.0003589,10]
[402135943,1768540267476,-505.44035984,0.0003589,10]
[402135944,1768540267485,-500.0,0.0003589,10]
[402135945,1768540267494,-500.0,0.0003589,10]
[402135946,1768540267504,-1144.45,0.0003589,10]
[402135947,1768540267513,-358.58906499,0.0003589,10]
[402135948,1768540267524,-141.41093501,0.0003589,10]
[402135949,1768540267533,-2378.6,0.0003589,10]
[402135950,1768540267543,-500.0,0.0003589,10]
[402135951,1768540267551,-501.55134596,0.0003589,10]
[402135952,1768540267561,-131.77798938,0.0003589,10]
[402135953,1768540267572,-368.22201062,0.0003589,10]
[402135954,1768540267582,-428.32762356,0.0003589,10]
[402135955,1768540267593,-71.67237644,0.0003589,10]
[402135956,1768540267603,-500.0,0.0003589,10]
[402135957,1768540267613,-500.0,0.0003589,10]
[402135958,1768540267623,-500.0,0.0003589,10]
[402135959,1768540267632,-1136.24,0.0003589,10]
[402135960,1768540267641,-500.0,0.0003589,10]
[402135961,1768540267651,-500.0,0.0003589,10]
[402135962,1768540267660,-458.18489612,0.0003589,2]
[402135963,1768540267672,-41.81510388,0.0003589,2]
[402135964,1768540267681,-500.0,0.0003589,10]
[402135965,1768540267690,-262.47250883,0.0003589,10]
[402135966,1768540267702,-237.52749117,0.0003589,10]
[402135967,1768540267711,-540.79,0.0003589,10]
[402135968,1768540267720,-407.00385593,0.0003589,10]
[402135969,1768540267731,-269.64614407,0.0003589,10]
[402135970,1768540267741,-1242.67,0.0003589,10]
[402135971,1768540267751,-500.0,0.0003589,10]
[402135972,1768540267760,-881.61652286,0.0003589,10]
[402135973,1768540267771,-62.39347714,0.0003589,10]
[402135974,1768540267780,-459.55232276,0.0003589,10]
[402135975,1768540267797,-263.13767724,0.0003589,10]
[402135976,1768540267806,-215.63903308,0.0003589,10]
[402135977,1768540267820,-284.36096692,0.0003589,10]
[402135978,1768540267829,-32.10936714,0.0003589,10]
[402135979,1768540267844,-500.0,0.00035616,10]
[402135980,1768540267852,-97.93603019,0.0003589,10]
[402135981,1768540339945,-470.71475349,0.00017598,2]